bitfinex/quotes_BTCUSD_20220731
["timestamp","ask_amount","ask_price","bid_price","bid_amount"]
[1659292054803,0.1,24081.0,24079.0,0.40725733]
[1659292055036,0.145767,24080.0,24077.0,0.40725733]
[1659292055277,0.445767,24080.0,24077.0,0.40725733]
[1659292055494,0.08467316,24079.0,24077.0,0.40725733]
[1659292055732,0.23852416,24079.0,24078.0,0.299612]
[1659292055976,0.12077,24079.0,24078.0,0.299612]
[1659292056204,0.183077,24079.0,24078.0,0.299612]
[1659292056427,0.1,24079.0,24078.0,0.70686933]
[1659292056650,0.125,24080.0,24078.0,0.70686933]
[1659292056895,0.03467316,24080.0,24079.0,0.299612]
[1659292057129,0.03467316,24080.0,24078.0,0.40725733]
[1659292057369,0.05967316,24080.0,24078.0,0.40725733]
[1659292057592,0.05967316,24080.0,24078.0,0.40651695]
[1659292058058,0.10967316,24080.0,24078.0,0.40651695]
[1659292058290,0.125,24080.0,24078.0,0.40651695]
[1659292058997,0.1284709,24080.0,24078.0,0.40651695]
[1659292059577,0.1492379,24080.0,24078.0,0.40651695]
[1659292060035,0.020767,24079.0,24078.0,0.40651695]
[1659292060263,0.04275,24079.0,24078.0,0.70612895]
[1659292060540,0.4284709,24080.0,24078.0,0.40651695]
[1659292060748,0.825012,24079.0,24078.0,0.40651695]
[1659292060982,0.825012,24079.0,24076.0,0.0128]
[1659292060983,0.05,24077.0,24076.0,0.0128]
[1659292061218,0.295411,24077.0,24076.0,0.0028]
[1659292061449,0.33008416,24077.0,24076.0,0.0028]
[1659292061680,0.63008416,24077.0,24076.0,0.0028]
[1659292062832,0.60967316,24077.0,24076.0,0.0028]
[1659292063544,0.91276106,24077.0,24076.0,0.00435028]
[1659292063781,1.32001839,24077.0,24076.0,0.00435028]
[1659292063995,1.40311239,24077.0,24076.0,0.00435028]
[1659292064208,1.42388639,24077.0,24076.0,0.00435028]
[1659292064490,1.01662906,24077.0,24076.0,0.00435028]
[1659292065920,1.01628866,24077.0,24076.0,0.00435028]
[1659292066150,1.0288359,24077.0,24076.0,0.00435028]
[1659292066367,1.6106359,24077.0,24076.0,0.00435028]
[1659292069011,0.6291763,24077.0,24076.0,0.00435028]
[1659292069244,0.16179714,24077.0,24076.0,0.00435028]
[1659292069739,0.20454714,24077.0,24076.0,0.00435028]
[1659292070190,0.28763514,24077.0,24076.0,0.00435028]
[1659292070652,0.63763514,24077.0,24076.0,0.00435028]
[1659292070887,0.38763514,24077.0,24076.0,0.00435028]
[1659292071137,0.68763514,24077.0,24076.0,0.00435028]
[1659292071366,0.98724714,24077.0,24076.0,0.00435028]
[1659292072068,1.03724714,24077.0,24076.0,0.00435028]
[1659292072508,0.73763514,24077.0,24076.0,0.00435028]
[1659292072726,0.7723083,24077.0,24076.0,0.00435028]
[1659292072953,0.1284759,24077.0,24076.0,0.53680761]
[1659292073188,0.0034759,24077.0,24076.0,0.83641961]
[1659292074368,0.0034759,24077.0,24076.0,0.53680761]
[1659292074611,0.0034759,24077.0,24076.0,0.00361628]
[1659292075361,0.0534759,24077.0,24076.0,0.00361628]
[1659292075585,0.03814906,24077.0,24076.0,0.00361628]
[1659292075804,0.15891906,24077.0,24076.0,0.00361628]
[1659292076525,0.4242459,24077.0,24076.0,0.00361628]
[1659292076757,0.4034759,24077.0,24076.0,0.00361628]
[1659292077211,0.4242469,24077.0,24076.0,0.00361628]
[1659292077424,0.4657889,24077.0,24076.0,0.00361628]
[1659292077652,0.1657889,24077.0,24076.0,0.00361628]
[1659292077878,0.4657889,24077.0,24076.0,0.00361628]
[1659292078341,0.5488749,24077.0,24076.0,0.00361628]
[1659292079074,0.2488749,24077.0,24076.0,0.00361628]
[1659292079293,0.5488749,24077.0,24076.0,0.00361628]
[1659292080234,0.58354806,24077.0,24076.0,0.00361628]
[1659292080460,0.63354806,24077.0,24076.0,0.00361628]
[1659292080929,0.55046206,24077.0,24076.0,0.00361628]
[1659292081831,0.56280338,24077.0,24076.0,0.00361628]
[1659292083254,0.86241538,24077.0,24076.0,0.00361628]
[1659292083471,0.98741538,24077.0,24076.0,0.00361628]
[1659292087020,0.86241538,24077.0,24076.0,0.00361628]
[1659292087252,0.86241538,24077.0,24076.0,0.0028759]
[1659292087490,0.4,24076.0,24066.0,0.6762349]
[1659292087720,0.341544,24075.0,24067.0,0.70686933]
[1659292087948,0.05,24074.0,24068.0,0.70686933]
[1659292088179,0.05,24074.0,24069.0,0.70686933]
[1659292088407,0.070772,24074.0,24070.0,0.70686933]
[1659292088624,0.070772,24074.0,24071.0,0.70686933]
[1659292088843,0.370772,24074.0,24072.0,0.40725733]
[1659292089168,0.112318,24073.0,24072.0,0.40651695]
[1659292089400,0.412318,24073.0,24072.0,0.40651695]
[1659292090558,0.020774,24072.0,24068.0,0.40725733]
[1659292090786,0.020774,24072.0,24069.0,0.299612]
[1659292090787,0.112325,24071.0,24069.0,0.299612]
[1659292091014,0.05,24071.0,24070.0,0.70612895]
[1659292091231,0.070775,24071.0,24070.0,0.70612895]
[1659292091475,0.05347294,24074.0,24070.0,0.70953998]
[1659292091476,0.00347294,24074.0,24070.0,0.70953998]
[1659292091706,0.00347085,24073.0,24072.0,0.025]
[1659292091933,0.00347085,24073.0,24072.0,0.73199833]
[1659292092390,0.00347085,24073.0,24072.0,0.70199833]
[1659292093151,0.00347085,24073.0,24064.0,0.23145382]
[1659292093152,0.05,24066.0,24064.0,0.23145382]
[1659292093379,0.05,24066.0,24065.0,0.40725733]
[1659292093380,0.15,24066.0,24065.0,0.40725733]
[1659292093611,0.15,24066.0,24065.0,0.299741]
[1659292093842,0.15,24066.0,24063.0,0.40725733]
[1659292094526,0.03467316,24065.0,24063.0,0.40725733]
[1659292094767,0.05,24064.0,24063.0,0.40966106]
[1659292094989,0.1,24064.0,24063.0,0.40725733]
[1659292095223,0.15,24064.0,24063.0,0.40725733]
[1659292095447,0.025,24065.0,24063.0,0.40651695]
[1659292095684,0.05,24065.0,24063.0,0.40651695]
[1659292095911,0.13467316,24065.0,24063.0,0.40651695]
[1659292096132,0.175,24064.0,24063.0,0.40651695]
[1659292096358,0.35,24064.0,24062.0,0.0011]
[1659292096586,0.125,24063.0,24062.0,0.0011]
[1659292097046,0.45,24064.0,24046.0,0.26087975]
[1659292097271,0.05,24062.0,24057.0,0.40725733]
[1659292097502,0.35,24063.0,24057.0,0.40725733]
[1659292097724,0.05,24058.0,24057.0,0.40725733]
[1659292097966,0.05,24058.0,24057.0,0.70699833]
[1659292098223,0.070784,24062.0,24057.0,0.70699833]
[1659292098447,0.10421448,24061.0,24058.0,0.70699833]
[1659292098690,0.225,24059.0,24056.0,0.0021]
[1659292098923,0.175,24057.0,24056.0,0.0021]
[1659292099160,0.90325933,24057.0,24056.0,0.0001]
[1659292099390,0.546002,24057.0,24056.0,0.0001]
[1659292099616,0.575,24057.0,24056.0,0.0001]
[1659292100090,0.874741,24057.0,24056.0,0.0001]
[1659292100882,0.95941416,24057.0,24056.0,0.0001]
[1659292101549,0.90941416,24057.0,24056.0,0.0001]
[1659292101782,1.30941416,24057.0,24056.0,0.0001]
[1659292102004,0.94059416,24057.0,24056.0,0.0001]
[1659292102482,0.94059416,24057.0,24055.0,0.0001]
[1659292102483,1.225,24056.0,24055.0,0.0001]
[1659292102728,1.225,24056.0,24054.0,0.0021]
[1659292102729,0.525,24055.0,24054.0,0.0021]
[1659292102968,0.749741,24055.0,24054.0,0.0021]
[1659292104684,1.28199833,24055.0,24054.0,0.0021]
[1659292105678,0.874741,24055.0,24054.0,0.0021]
[1659292106173,0.474741,24055.0,24054.0,0.0021]
[1659292106390,0.424741,24055.0,24054.0,0.0021]
[1659292107075,0.424741,24055.0,24052.0,0.0011]
[1659292107076,0.175,24053.0,24052.0,0.0011]
[1659292107293,0.60325933,24053.0,24052.0,0.0011]
[1659292107531,0.90325933,24053.0,24052.0,0.0011]
[1659292107776,0.125,24050.0,24049.0,0.0021]
[1659292107979,0.45,24043.0,24042.0,0.021]
[1659292108200,1.00275933,24043.0,24042.0,0.021]
[1659292108457,0.545502,24043.0,24042.0,0.021]
[1659292109349,0.245502,24043.0,24042.0,0.021]
[1659292109568,0.1,24043.0,24042.0,0.021]
[1659292109833,0.399741,24043.0,24042.0,0.021]
[1659292110034,0.4,24043.0,24042.0,0.021]
[1659292110249,0.749741,24043.0,24042.0,0.021]
[1659292110483,0.749741,24043.0,24040.0,0.001]
[1659292110484,0.225,24041.0,24040.0,0.001]
[1659292110690,0.425,24035.0,24034.0,0.001]
[1659292110939,1.00567516,24035.0,24034.0,0.001]
[1659292111164,1.46293249,24035.0,24034.0,0.001]
[1659292111395,1.46293249,24035.0,24032.0,0.0011]
[1659292111396,0.225,24033.0,24032.0,0.0011]
[1659292111606,1.10325933,24033.0,24032.0,0.0011]
[1659292111832,1.48446933,24033.0,24032.0,0.0011]
[1659292112072,1.45325933,24033.0,24032.0,0.0011]
[1659292112503,1.00325933,24033.0,24032.0,0.0011]
[1659292112777,0.05,24021.0,24020.0,0.0021]
[1659292113030,0.05,24021.0,24011.0,0.5]
[1659292113031,0.03467316,24021.0,24011.0,0.5]
[1659292113259,0.05,24015.0,24012.0,0.70699833]
[1659292113487,0.1,24019.0,24013.0,0.70699833]
[1659292113723,0.1,24019.0,24014.0,0.70699833]
[1659292113724,0.15,24019.0,24014.0,0.70699833]
[1659292113951,0.05,24018.0,24015.0,0.70699833]
[1659292114176,0.03467316,24017.0,24015.0,0.40725733]
[1659292114415,0.13467316,24017.0,24010.0,0.40725733]
[1659292114635,0.075,24017.0,24014.0,0.40725733]
[1659292114867,0.35,24021.0,24015.0,0.299741]
[1659292115107,0.0034558,24018.0,24015.0,0.40225733]
[1659292115328,0.16660103,24019.0,24015.0,0.40225733]
[1659292115560,0.16660103,24019.0,24010.0,0.40725733]
[1659292115561,0.21660103,24019.0,24010.0,0.40725733]
[1659292115780,0.05,24016.0,24010.0,0.40725733]
[1659292116009,0.0534707,24016.0,24011.0,0.299741]
[1659292116309,0.0534707,24016.0,24012.0,0.40725733]
[1659292116542,0.1534707,24016.0,24010.0,0.001]
[1659292116770,0.1534707,24016.0,24011.0,0.70699833]
[1659292116983,0.1034707,24016.0,24010.0,0.001]
[1659292117211,0.51072803,24016.0,24010.0,0.001]
[1659292117450,0.1245,24015.0,24011.0,0.40725733]
[1659292118144,0.025,24015.0,24012.0,0.71437823]
[1659292118372,0.8745,24014.0,24013.0,0.299741]
[1659292118593,0.35,24011.0,24010.0,0.001]
[1659292118898,0.475,24011.0,24010.0,0.001]
[1659292119348,1.56667149,24011.0,24010.0,0.001]
[1659292119584,1.69791149,24011.0,24010.0,0.001]
[1659292119815,1.66667149,24011.0,24010.0,0.001]
[1659292120309,1.66656413,24011.0,24010.0,0.001]
[1659292120541,1.71656413,24011.0,24010.0,0.001]
[1659292120769,1.72920761,24011.0,24010.0,0.001]
[1659292121008,1.71656413,24011.0,24010.0,0.001]
[1659292121235,1.66656413,24011.0,24010.0,0.001]
[1659292121477,1.71656413,24011.0,24010.0,0.001]
[1659292121715,0.08467316,24011.0,24010.0,0.001]
[1659292121939,0.79167149,24011.0,24010.0,0.001]
[1659292122175,0.125,23999.0,23990.0,0.56832308]
[1659292122422,0.125,23999.0,23985.0,0.72895609]
[1659292122423,0.05,23981.0,23953.0,8.0857055]
[1659292122664,0.05,23981.0,23934.0,10.91220187]
[1659292122665,1.0,23948.0,23934.0,10.91220187]
[1659292122920,1.0,23948.0,23946.0,0.18986578]
[1659292122921,0.020808,23947.0,23946.0,0.18986578]
[1659292123153,1.85419079,23937.0,23931.0,0.99006]
[1659292123407,1.85419079,23937.0,23924.0,0.5]
[1659292123408,0.62997694,23927.0,23924.0,0.5]
[1659292123645,0.62997694,23927.0,23906.0,1.33171567]
[1659292123646,0.40725733,23907.0,23906.0,0.78200139]
[1659292123878,0.40725733,23907.0,23903.0,0.05]
[1659292123879,12.06770167,23907.0,23903.0,0.05]
[1659292124120,12.06770167,23907.0,23898.0,0.05487112]
[1659292124121,9.914294,23906.0,23902.0,0.21807871]
[1659292124353,9.914294,23906.0,23885.0,0.10121853]
[1659292124354,1.266,23904.0,23885.0,0.10121853]
[1659292124598,1.266,23904.0,23886.0,1.9198458]
[1659292124599,4.83825733,23891.0,23886.0,1.9198458]
[1659292124826,4.83825733,23891.0,23846.0,0.33905432]
[1659292124827,9.26134648,23849.0,23846.0,0.33905432]
[1659292125067,9.26134648,23849.0,23848.0,1.34427408]
[1659292125068,4.20133712,23849.0,23848.0,1.34427408]
[1659292125334,4.20133712,23849.0,23819.0,0.37561554]
[1659292125335,4.16364246,23847.0,23837.0,0.18186]
[1659292125573,4.16364246,23847.0,23793.0,0.00350887]
[1659292125574,4.76941494,23795.0,23794.0,1.7630458]
[1659292125804,4.76941494,23795.0,23789.0,0.02740433]
[1659292125805,3.51908002,23789.0,23783.0,0.01252436]
[1659292126037,3.51908002,23789.0,23769.0,0.00489755]
[1659292126038,13.47049131,23775.0,23773.0,0.01239139]
[1659292126269,2.14524373,23755.0,23745.0,0.27672738]
[1659292126563,0.4868348,23776.0,23774.0,0.4]
[1659292126805,0.27710732,23798.0,23783.0,2.30514557]
[1659292127034,0.98,23786.0,23781.0,0.2]
[1659292127285,1.0395,23784.0,23781.0,0.09986]
[1659292127513,9.27956666,23786.0,23785.0,0.05]
[1659292127741,0.39287047,23783.0,23774.0,0.4]
[1659292128014,0.87278567,23783.0,23782.0,0.06395]
[1659292128242,0.87278567,23783.0,23756.0,0.04]
[1659292128243,0.00971842,23775.0,23756.0,0.04]
[1659292128472,0.00971842,23775.0,23718.0,0.19664]
[1659292128473,0.05,23743.0,23718.0,0.19664]
[1659292128703,0.0224508,23743.0,23741.0,0.4]
[1659292128930,0.0224508,23743.0,23741.0,0.12721433]
[1659292128931,0.03467316,23743.0,23741.0,0.12721433]
[1659292129156,0.03467316,23743.0,23720.0,3.141675]
[1659292129157,0.32868064,23759.0,23743.0,0.03467]
[1659292129385,0.32868064,23759.0,23742.0,4.6599137]
[1659292129386,0.40725733,23744.0,23742.0,3.88133271]
[1659292129622,0.40725733,23744.0,23710.0,0.15509]
[1659292129623,0.04936214,23742.0,23720.0,0.1]
[1659292129865,3.86414382,23718.0,23711.0,0.4]
[1659292130093,3.86414382,23718.0,23688.0,0.05]
[1659292130094,3.75794382,23690.0,23680.0,0.039765]
[1659292130329,2.56894378,23718.0,23640.0,0.13252428]
[1659292130330,0.05,23679.0,23640.0,0.13252428]
[1659292130580,0.06746885,23715.0,23640.0,0.13252428]
[1659292130581,4.20362352,23703.0,23691.0,0.95498436]
[1659292130807,4.20362352,23703.0,23649.0,0.400994]
[1659292130808,1.79211666,23696.0,23667.0,0.00087]
[1659292131032,1.79211666,23696.0,23692.0,9.75]
[1659292131033,4.16144378,23696.0,23692.0,9.75]
[1659292131261,4.16144378,23696.0,23668.0,0.08449]
[1659292131262,2.0,23693.0,23668.0,0.08449]
[1659292131508,2.0,23693.0,23650.0,0.24211086]
[1659292131509,9.40967511,23662.0,23650.0,0.24211086]
[1659292131856,2.0,23685.0,23650.0,0.24211086]
[1659292131857,7.8632228,23660.0,23654.0,0.4]
[1659292132060,7.77183559,23651.0,23642.0,0.02757472]
[1659292132292,7.0835921,23647.0,23642.0,0.01757472]
[1659292132543,7.0803521,23644.0,23628.0,0.1273]
[1659292132780,7.0303521,23644.0,23637.0,0.1269]
[1659292133019,2.56894378,23660.0,23633.0,0.25416982]
[1659292133020,7.0303521,23642.0,23633.0,0.24916982]
[1659292133252,0.05,23660.0,23634.0,0.300994]
[1659292133253,0.05,23659.0,23634.0,0.300994]
[1659292133501,0.99,23658.0,23640.0,0.1273]
[1659292133730,0.05,23653.0,23640.0,0.1276015]
[1659292133967,0.65,23652.0,23640.0,0.1276]
[1659292134245,0.9889,23658.0,23640.0,0.1276]
[1659292134246,0.03781086,23658.0,23652.0,0.1276]
[1659292134482,0.03781086,23658.0,23641.0,0.304623]
[1659292134483,1.0,23656.0,23643.0,0.304623]
[1659292134726,1.0,23657.0,23640.0,0.1276]
[1659292134727,1.0,23655.0,23653.0,1.86733]
[1659292134967,0.6,23672.0,23654.0,0.304623]
[1659292135203,1.0,23671.0,23664.0,0.1276]
[1659292135446,1.0,23681.0,23671.0,0.1656301]
[1659292135712,1.0,23681.0,23664.0,0.1257]
[1659292135713,0.00667216,23682.0,23681.0,0.1226]
[1659292135948,4.20097463,23701.0,23682.0,0.83398]
[1659292135949,0.2,23701.0,23682.0,0.83398]
[1659292136183,2.26807375,23711.0,23678.0,0.1]
[1659292136184,0.49026733,23700.0,23686.0,0.40725733]
[1659292136425,12.12619,23700.0,23697.0,0.1]
[1659292136672,0.05392578,23702.0,23697.0,0.40725733]
[1659292136916,0.1,23701.0,23698.0,0.304523]
[1659292137146,2.26807375,23711.0,23701.0,0.45725733]
[1659292137385,0.08301,23705.0,23701.0,0.05]
[1659292137624,2.35108375,23711.0,23710.0,0.40725733]
[1659292137862,0.04545408,23706.0,23699.0,0.05]
[1659292138134,3.35108375,23711.0,23696.0,0.43262288]
[1659292138135,0.2,23708.0,23707.0,0.1]
[1659292138367,0.41179443,23746.0,23718.0,0.40725733]
[1659292138607,0.41179443,23746.0,23711.0,0.91699]
[1659292138608,0.07301,23729.0,23724.0,0.1272]
[1659292138844,0.08301,23728.0,23725.0,0.404523]
[1659292139072,0.06301,23729.0,23712.0,0.51020806]
[1659292139073,0.33301,23729.0,23728.0,0.2544]
[1659292139312,0.33301,23729.0,23714.0,0.28076552]
[1659292139313,0.05,23736.0,23718.0,0.07]
[1659292139571,0.28301,23741.0,23732.0,0.05615308]
[1659292139804,0.248447,23757.0,23744.0,0.11914034]
[1659292140042,0.248447,23757.0,23720.0,0.3]
[1659292140043,0.26542373,23738.0,23731.0,0.37799102]
[1659292140297,0.26542373,23738.0,23725.0,0.44108726]
[1659292140298,0.08301,23747.0,23737.0,1.0]
[1659292140543,0.03156,23761.0,23739.0,0.04531074]
[1659292140793,0.03156,23761.0,23738.0,0.450426]
[1659292140794,0.08301,23761.0,23751.0,0.0127]
[1659292141033,0.03157,23760.0,23755.0,0.03068126]
[1659292141266,0.03157,23760.0,23737.0,1.0]
[1659292141267,0.79333075,23749.0,23733.0,0.059]
[1659292141497,1.41044798,23748.0,23734.0,0.99]
[1659292141725,1.41044798,23748.0,23706.0,0.1]
[1659292141726,0.64054816,23747.0,23728.0,0.05]
[1659292142229,0.64054816,23744.0,23713.0,0.39312134]
[1659292142234,0.1,23731.0,23713.0,0.3855379]
[1659292142463,1.2061,23741.0,23715.0,0.03083267]
[1659292142464,0.01916733,23740.0,23715.0,0.03083267]
[1659292142703,0.01416733,23731.0,23730.0,0.1]
[1659292142947,0.01416733,23731.0,23708.0,0.37960156]
[1659292142948,0.19133259,23708.0,23707.0,0.6]
[1659292143185,0.57142259,23708.0,23707.0,0.25077618]
[1659292143417,0.57142259,23708.0,23707.0,0.2105772]
[1659292143418,0.11303708,23708.0,23707.0,0.2105772]
[1659292143675,0.15803708,23708.0,23706.0,0.0455806]
[1659292143907,0.33869116,23707.0,23706.0,0.35942404]
[1659292144139,0.1,23706.0,23699.0,0.08436]
[1659292144381,0.04161449,23700.0,23699.0,0.07436]
[1659292144647,1.0,23706.0,23705.0,0.71100256]
[1659292144886,0.05,23736.0,23705.0,0.71100256]
[1659292144887,0.06246031,23718.0,23717.0,0.40725733]
[1659292145117,0.40725733,23740.0,23728.0,0.40725733]
[1659292145352,0.19495,23743.0,23718.0,0.9]
[1659292145353,1.0,23739.0,23729.0,0.78273769]
[1659292145597,2.87284209,23741.0,23736.0,0.78465733]
[1659292145598,2.46558476,23741.0,23736.0,0.78465733]
[1659292145863,2.46558476,23741.0,23740.0,0.3792]
[1659292145864,1.3810064,23741.0,23740.0,0.3792]
[1659292146099,0.29548777,23741.0,23740.0,0.28178662]
[1659292146343,0.29548777,23741.0,23740.0,0.38314662]
[1659292146344,0.55,23741.0,23740.0,0.38314662]
[1659292146582,0.53159,23741.0,23740.0,0.31164345]
[1659292146825,0.19495,23743.0,23740.0,0.18564345]
[1659292146826,0.03159,23742.0,23740.0,0.18564345]
[1659292147068,0.03159,23742.0,23741.0,0.55725899]
[1659292147314,0.1535,23745.0,23741.0,0.63150692]
[1659292147554,0.03158,23750.0,23741.0,0.63150692]
[1659292147555,0.03158,23750.0,23745.0,0.1535]
[1659292147787,0.03158,23750.0,23749.0,0.5618888]
[1659292148038,6.043108,23749.0,23737.0,0.05891368]
[1659292148282,0.03156,23762.0,23743.0,1.0]
[1659292148518,6.654115,23750.0,23744.0,1.692091]
[1659292148749,0.5247,23781.0,23750.0,0.4421]
[1659292148987,0.814951,23780.0,23772.0,0.1258]
[1659292149227,0.814951,23780.0,23758.0,0.9544]
[1659292149228,0.37739999,23766.0,23758.0,0.9544]
[1659292149492,0.05,23756.0,23749.0,0.05]
[1659292149762,2.42739999,23766.0,23738.0,0.08]
[1659292149763,0.05,23750.0,23738.0,0.08]
[1659292149987,0.0099,23748.0,23739.0,0.03159]
[1659292150238,1.2491,23748.0,23739.0,0.17660573]
[1659292150465,1.2491,23748.0,23739.0,0.14501573]
[1659292150695,1.2491,23748.0,23742.0,0.1]
[1659292150933,1.2491,23748.0,23743.0,0.43159]
[1659292150934,3.628191,23747.0,23743.0,0.43159]
[1659292151236,0.03467316,23746.0,23744.0,0.04285049]
[1659292151461,2.03156,23764.0,23745.0,0.03159]
[1659292151716,0.05,23753.0,23744.0,0.04547622]
[1659292151932,0.05,23752.0,23748.0,0.35270009]
[1659292152182,0.05,23749.0,23736.0,0.13700666]
[1659292152397,0.05,23747.0,23736.0,0.08425]
[1659292152631,0.05,23741.0,23737.0,0.1253066]
[1659292152878,0.05,23739.0,23738.0,0.08422]
[1659292153101,0.05,23739.0,23722.0,0.03162]
[1659292153102,0.03425,23736.0,23725.0,0.08429]
[1659292153317,0.03425,23736.0,23726.0,0.04668498]
[1659292153318,0.4899,23735.0,23726.0,0.04668498]
[1659292153541,0.4899,23735.0,23729.0,0.00088284]
[1659292153765,0.00454056,23748.0,23731.0,0.04428831]
[1659292153766,0.03159,23742.0,23731.0,0.04428831]
[1659292153997,0.4583,23741.0,23731.0,0.04428831]
[1659292154218,0.335608,23740.0,23731.0,0.20990489]
[1659292154447,0.335608,23740.0,23731.0,0.16851]
[1659292154448,0.4583,23739.0,23731.0,0.16851]
[1659292154666,0.03159,23740.0,23731.0,0.16851]
[1659292154667,0.335608,23738.0,23731.0,0.16851]
[1659292154946,0.03159,23738.0,23732.0,9.02148]
[1659292155178,0.5,23740.0,23733.0,0.150495]
[1659292155418,0.00454056,23748.0,23741.0,0.05]
[1659292155650,0.03158,23747.0,23746.0,0.05]
[1659292155883,0.03158,23747.0,23740.0,0.8]
[1659292155884,0.53158,23747.0,23741.0,0.08423]
[1659292156115,0.53158,23747.0,23738.0,0.05799724]
[1659292156116,0.44334882,23740.0,23738.0,0.05799724]
[1659292156358,0.05,23736.0,23706.0,0.05]
[1659292156591,0.1,23733.0,23728.0,0.08426]
[1659292156816,0.61470244,23740.0,23728.0,0.08426]
[1659292156817,0.1,23729.0,23728.0,0.08426]
[1659292157068,0.0316,23735.0,23729.0,0.04827366]
[1659292157629,0.0316,23735.0,23729.0,0.08425]
[1659292157860,0.05,23734.0,23732.0,0.08424]
[1659292158090,0.05,23734.0,23717.0,0.0843]
[1659292158091,0.08427,23726.0,23717.0,0.0843]
[1659292158331,0.03161,23725.0,23704.0,0.1]
[1659292158565,0.03161,23725.0,23705.0,0.62090847]
[1659292158830,0.43886733,23725.0,23706.0,0.0536453]
[1659292159064,0.43886733,23725.0,23707.0,0.08433]
[1659292159065,0.40725733,23724.0,23707.0,0.08433]
[1659292159290,0.40725733,23724.0,23708.0,0.04136519]
[1659292159291,0.05,23720.0,23708.0,0.04136519]
[1659292159521,0.03162,23719.0,23699.0,0.36019271]
[1659292159748,0.03162,23719.0,23700.0,0.07428697]
[1659292159749,0.05,23716.0,23700.0,0.07428697]
[1659292159976,0.07662,23719.0,23693.0,0.00088284]
[1659292159977,0.00987,23703.0,23693.0,0.00088284]
[1659292160218,0.00987,23703.0,23690.0,0.04013]
[1659292160219,0.43164,23702.0,23690.0,0.04013]
[1659292160439,0.03164,23702.0,23694.0,5.108046]
[1659292160669,0.00987,23703.0,23694.0,5.108046]
[1659292160670,0.03164,23707.0,23697.0,0.04013]
[1659292160905,0.00987,23707.0,23696.0,0.04745089]
[1659292161159,0.00987,23702.0,23687.0,0.04013]
[1659292161388,0.05470461,23709.0,23682.0,0.04013]
[1659292161389,0.00987,23697.0,23682.0,0.04013]
[1659292161627,0.00987,23687.0,23681.0,0.0011]
[1659292161860,0.00987,23689.0,23681.0,0.0011]
[1659292162098,0.00987,23684.0,23681.0,0.0011]
[1659292162312,0.00987,23684.0,23677.0,0.04974176]
[1659292162313,0.00987,23678.0,23677.0,0.04974176]
[1659292162652,0.50987,23677.0,23674.0,0.04470462]
[1659292162885,0.1,23675.0,23673.0,0.04013]
[1659292163114,0.05752899,23683.0,23677.0,0.04013]
[1659292163354,0.07577225,23689.0,23683.0,0.04004108]
[1659292163581,0.07577225,23689.0,23679.0,0.03504108]
[1659292163582,0.55280472,23688.0,23679.0,0.03504108]
[1659292163811,0.5,23684.0,23677.0,0.03504108]
[1659292164056,3.10349796,23690.0,23670.0,0.151448]
[1659292164057,0.4978,23682.0,23670.0,0.151448]
[1659292164308,0.01495892,23676.0,23671.0,0.09232477]
[1659292164540,0.81253738,23684.0,23655.0,0.44789433]
[1659292164541,0.01495892,23668.0,23655.0,0.44789433]
[1659292164771,0.01495892,23668.0,23655.0,0.43789433]
[1659292165010,0.40725733,23667.0,23659.0,0.0011]
[1659292165240,0.05074523,23681.0,23668.0,0.03504108]
[1659292165465,0.87500216,23681.0,23675.0,0.03504108]
[1659292165694,0.87500216,23681.0,23675.0,0.02504108]
[1659292165695,0.46372931,23681.0,23675.0,0.02504108]
[1659292165921,0.41565,23681.0,23676.0,0.150994]
[1659292166158,0.46565,23681.0,23676.0,0.150994]
[1659292166419,0.46565,23681.0,23662.0,0.9599]
[1659292166420,0.2267455,23675.0,23664.0,0.1]
[1659292166689,0.2267455,23675.0,23665.0,0.03169]
[1659292166690,0.6,23674.0,23665.0,0.03169]
[1659292166923,0.05,23672.0,23666.0,0.03169]
[1659292167162,0.03168,23671.0,23662.0,0.01700773]
[1659292167394,0.41565,23672.0,23662.0,0.36109731]
[1659292167655,0.27917832,23675.0,23669.0,1.0665]
[1659292167855,0.2267455,23675.0,23669.0,1.0665]
[1659292168107,0.2267455,23675.0,23670.0,0.03169]
[1659292168333,0.2267455,23675.0,23656.0,0.04324616]
[1659292168334,0.05,23668.0,23656.0,0.04324616]
[1659292168562,0.05,23668.0,23639.0,0.0022]
[1659292168563,0.05,23656.0,23639.0,0.0022]
[1659292168792,0.04385233,23665.0,23650.0,0.17691324]
[1659292169020,0.05,23655.0,23650.0,0.17691324]
[1659292169268,0.05,23660.0,23650.0,0.17691324]
[1659292169269,0.85,23651.0,23650.0,0.17691324]
[1659292169509,0.0489,23653.0,23649.0,0.18113298]
[1659292169742,0.0489,23652.0,23650.0,0.21300315]
[1659292169974,0.0989,23652.0,23651.0,0.17696986]
[1659292170393,0.0989,23652.0,23642.0,0.03772]
[1659292170394,0.0989,23643.0,23642.0,0.006]
[1659292170400,0.0989,23642.0,23639.0,0.0022]
[1659292170655,0.04378249,23647.0,23633.0,0.22980924]
[1659292170901,0.05886134,23647.0,23641.0,0.125206]
[1659292171132,0.13993231,23655.0,23641.0,0.457946]
[1659292171358,0.0489,23644.0,23642.0,1.706465]
[1659292171589,0.129,23649.0,23632.0,0.02]
[1659292171590,0.04165,23642.0,23632.0,0.02]
[1659292171825,0.09600725,23637.0,23636.0,0.46187847]
[1659292172067,0.04461612,23635.0,23632.0,0.02]
[1659292172312,0.05,23641.0,23633.0,0.40725733]
[1659292172313,0.00086,23637.0,23633.0,0.40725733]
[1659292172543,0.05,23646.0,23632.0,0.01]
[1659292172544,0.05956869,23654.0,23641.0,0.00538388]
[1659292172834,0.05956869,23654.0,23635.0,0.05688617]
[1659292172835,0.04461612,23636.0,23635.0,0.05688617]
[1659292173093,0.07559453,23636.0,23632.0,0.01]
[1659292173320,0.04311294,23635.0,23615.0,0.00688706]
[1659292173554,0.02769195,23636.0,23613.0,1.0504818]
[1659292173555,0.02769195,23636.0,23619.0,0.00688706]
[1659292173789,0.02769195,23636.0,23621.0,0.00188706]